[Event "Titled Tuesday Blitz August 1 Late 2023"]
[White "Fernandez Bustamante, Leancy B."]
[Black "Bazilius, Augustinas"]
[WhiteFideId "3523870"]
[BlackFideId "12832251"]
[WhiteElo "2239"]
[BlackElo "2436"]
[Result "0-1"]
[Round "5"]
[TimeControl "180+1"]
[Date "2023.08.01"]
[WhiteClock "0:00:00"]
[BlackClock "0:00:02"]
[Board "161"]

1. e4 {[%clk 0:01:37]}  c5 {[%clk 0:02:58]} 2. Nf3 {[%clk 0:01:38]}  a6 {[%clk 0:02:58]} 3. c3 {[%clk 0:01:38]}  e6 {[%clk 0:02:58]} 4. d4 {[%clk 0:01:39]}  d5 {[%clk 0:02:56]} 5. e5 {[%clk 0:01:39]}  Bd7 {[%clk 0:02:55]} 6. Bd3 {[%clk 0:01:40]}  Nc6 {[%clk 0:02:53]} 7. O-O {[%clk 0:01:40]}  cxd4 {[%clk 0:02:54]} 8. cxd4 {[%clk 0:01:41]}  Qb6 {[%clk 0:02:55]} 9. Bc2 {[%clk 0:01:39]}  Nb4 {[%clk 0:02:54]} 10. Nc3 {[%clk 0:01:32]}  Nxc2 {[%clk 0:02:48]} 11. Qxc2 {[%clk 0:01:33]}  Rc8 {[%clk 0:02:48]} 12. a3 {[%clk 0:01:33]}  Ne7 {[%clk 0:02:41]} 13. Be3 {[%clk 0:01:31]}  Qa7 {[%clk 0:02:19]} 14. Rfe1 {[%clk 0:01:29]}  b5 {[%clk 0:02:18]} 15. Qd2 {[%clk 0:01:22]}  Nc6 {[%clk 0:02:16]} 16. b4 {[%clk 0:01:17]}  Ne7 {[%clk 0:02:15]} 17. Rac1 {[%clk 0:01:16]}  Nf5 {[%clk 0:02:13]} 18. Ne2 {[%clk 0:01:11]}  Rc4 {[%clk 0:02:11]} 19. Qd3 {[%clk 0:01:07]}  Nxe3 {[%clk 0:02:08]} 20. Qxe3 {[%clk 0:00:59]}  Be7 {[%clk 0:02:06]} 21. Nd2 {[%clk 0:00:59]}  Rxc1 {[%clk 0:01:57]} 22. Nxc1 {[%clk 0:01:00]}  O-O {[%clk 0:01:57]} 23. Nd3 {[%clk 0:01:00]}  a5 {[%clk 0:01:41]} 24. Nc5 {[%clk 0:01:00]}  Bc8 {[%clk 0:01:41]} 25. Qb3 {[%clk 0:00:48]}  axb4 {[%clk 0:01:23]} 26. axb4 {[%clk 0:00:48]}  Bb7 {[%clk 0:01:17]} 27. Qd3 {[%clk 0:00:43]}  Qb6 {[%clk 0:01:13]} 28. Re3 {[%clk 0:00:39]}  Ra8 {[%clk 0:01:10]} 29. f4 {[%clk 0:00:37]}  Ra1+ {[%clk 0:01:07]} 30. Kf2 {[%clk 0:00:36]}  Bh4+ {[%clk 0:01:05]} 31. Ke2 {[%clk 0:00:36]}  Re1+ {[%clk 0:01:03]} 32. Kf3 {[%clk 0:00:36]}  Ra1 {[%clk 0:00:57]} 33. Kg4 {[%clk 0:00:34]}  Be7 {[%clk 0:00:52]} 34. Rh3 {[%clk 0:00:34]}  g6 {[%clk 0:00:48]} 35. Re3 {[%clk 0:00:30]}  Bc6 {[%clk 0:00:37]} 36. Ndb3 {[%clk 0:00:27]}  Ra3 {[%clk 0:00:35]} 37. Qd2 {[%clk 0:00:25]}  Qa7 {[%clk 0:00:31]} 38. Na5 {[%clk 0:00:23]}  Rxe3 {[%clk 0:00:28]} 39. Qxe3 {[%clk 0:00:23]}  Be8 {[%clk 0:00:27]} 40. h4 {[%clk 0:00:22]}  Bd8 {[%clk 0:00:27]} 41. Kh3 {[%clk 0:00:22]}  Bxa5 {[%clk 0:00:26]} 42. bxa5 {[%clk 0:00:23]}  Qxa5 {[%clk 0:00:26]} 43. Nb3 {[%clk 0:00:22]}  Qa3 {[%clk 0:00:25]} 44. Qc3 {[%clk 0:00:20]}  b4 {[%clk 0:00:24]} 45. Qd3 {[%clk 0:00:09]}  Ba4 {[%clk 0:00:21]} 46. Nc5 {[%clk 0:00:10]}  Qxd3+ {[%clk 0:00:15]} 47. Nxd3 {[%clk 0:00:11]}  b3 {[%clk 0:00:15]} 48. Nb2 {[%clk 0:00:12]}  Bb5 {[%clk 0:00:14]} 49. Kg3 {[%clk 0:00:13]}  Kg7 {[%clk 0:00:13]} 50. Kf3 {[%clk 0:00:13]}  f6 {[%clk 0:00:10]} 51. Ke3 {[%clk 0:00:13]}  fxe5 {[%clk 0:00:09]} 52. fxe5 {[%clk 0:00:11]}  Bc4 {[%clk 0:00:09]} 53. Kf4 {[%clk 0:00:11]}  h6 {[%clk 0:00:09]} 54. g4 {[%clk 0:00:10]}  Kf7 {[%clk 0:00:09]} 55. Ke3 {[%clk 0:00:08]}  Ke7 {[%clk 0:00:09]} 56. Kd2 {[%clk 0:00:08]}  g5 {[%clk 0:00:08]} 57. hxg5 {[%clk 0:00:06]}  hxg5 {[%clk 0:00:09]} 58. Kc3 {[%clk 0:00:06]}  Kd7 {[%clk 0:00:10]} 59. Nd1 {[%clk 0:00:06]}  Kc6 {[%clk 0:00:06]} 60. Kb4 {[%clk 0:00:06]}  Be2 {[%clk 0:00:05]} 61. Nb2 {[%clk 0:00:06]}  Bc4 {[%clk 0:00:03]} 62. Na4 {[%clk 0:00:05]}  Be2 {[%clk 0:00:02]} 63. Kxb3 {[%clk 0:00:03]}  Bxg4 {[%clk 0:00:03]} 64. Nc5 {[%clk 0:00:03]}  Bf5 {[%clk 0:00:02]} 65. Kc3 {[%clk 0:00:00]}  Kb5 {[%clk 0:00:02]} 0-1


[Site "https://www.chess.com"]

[Event "Titled Tuesday Blitz August 1 Late 2023"]
[White "el_sporco"]
[Black "Petersson, Kjell"]
[BlackFideId "1705148"]
[WhiteElo "2312"]
[BlackElo "2166"]
[Result "0-1"]
[Round "5"]
[TimeControl "180+1"]
[Date "2023.08.01"]
[WhiteClock "0:01:23"]
[BlackClock "0:01:14"]
[Board "164"]

1. e4 {[%clk 0:03:00]}  c5 {[%clk 0:02:59]} 2. Nf3 {[%clk 0:02:54]}  d6 {[%clk 0:03:00]} 3. d4 {[%clk 0:02:54]}  cxd4 {[%clk 0:03:00]} 4. Nxd4 {[%clk 0:02:54]}  Nf6 {[%clk 0:03:00]} 5. Nc3 {[%clk 0:02:55]}  g6 {[%clk 0:03:01]} 6. Be3 {[%clk 0:02:55]}  Bg7 {[%clk 0:03:01]} 7. f3 {[%clk 0:02:56]}  O-O {[%clk 0:03:01]} 8. Qd2 {[%clk 0:02:56]}  Nc6 {[%clk 0:03:01]} 9. Bc4 {[%clk 0:02:57]}  Nd7 {[%clk 0:03:00]} 10. O-O-O {[%clk 0:02:56]}  Nb6 {[%clk 0:03:01]} 11. Bb3 {[%clk 0:02:49]}  Na5 {[%clk 0:03:01]} 12. Qe2 {[%clk 0:02:49]}  Nxb3+ {[%clk 0:03:00]} 13. axb3 {[%clk 0:02:48]}  a5 {[%clk 0:03:00]} 14. Na4 {[%clk 0:02:47]}  Nxa4 {[%clk 0:02:54]} 15. bxa4 {[%clk 0:02:48]}  Bd7 {[%clk 0:02:52]} 16. Nb5 {[%clk 0:02:48]}  Rc8 {[%clk 0:02:36]} 17. Kb1 {[%clk 0:02:33]}  Be6 {[%clk 0:02:27]} 18. Bd4 {[%clk 0:02:30]}  Bxd4 {[%clk 0:02:20]} 19. Rxd4 {[%clk 0:02:28]}  Qb6 {[%clk 0:02:12]} 20. Rhd1 {[%clk 0:02:26]}  Rc5 {[%clk 0:02:10]} 21. b3 {[%clk 0:02:24]}  Rfc8 {[%clk 0:02:09]} 22. R1d2 {[%clk 0:02:19]}  Qc6 {[%clk 0:01:52]} 23. Qd1 {[%clk 0:02:16]}  Bxb3 {[%clk 0:01:41]} 24. Na7 {[%clk 0:01:58]}  Bxc2+ {[%clk 0:01:38]} 25. Rxc2 {[%clk 0:01:52]}  Qb6+ {[%clk 0:01:37]} 26. Nb5 {[%clk 0:01:37]}  Rxc2 {[%clk 0:01:34]} 27. Qxc2 {[%clk 0:01:38]}  Rxc2 {[%clk 0:01:33]} 28. Kxc2 {[%clk 0:01:39]}  Qc5+ {[%clk 0:01:33]} 29. Kd3 {[%clk 0:01:37]}  Qc1 {[%clk 0:01:26]} 30. Rc4 {[%clk 0:01:33]}  Qd1+ {[%clk 0:01:24]} 31. Ke3 {[%clk 0:01:31]}  Qe1+ {[%clk 0:01:20]} 32. Kd3 {[%clk 0:01:26]}  Qf1+ {[%clk 0:01:20]} 33. Kd4 {[%clk 0:01:26]}  Qxg2 {[%clk 0:01:18]} 34. Rc8+ {[%clk 0:01:24]}  Kg7 {[%clk 0:01:18]} 35. Rc7 {[%clk 0:01:24]}  Qxf3 {[%clk 0:01:15]} 36. Rxe7 {[%clk 0:01:23]}  Qf6+ {[%clk 0:01:14]} 0-1


[Site "https://www.chess.com"]

[Event "Titled Tuesday Blitz August 1 Late 2023"]
[White "Semenova, Alina"]
[Black "Lacasa Diaz, Jose Antonio"]
[WhiteFideId "24113875"]
[BlackFideId "2203375"]
[WhiteElo "2072"]
[BlackElo "2305"]
[Result "1-0"]
[Round "5"]
[TimeControl "180+1"]
[Date "2023.08.01"]
[WhiteClock "0:00:03"]
[BlackClock "0:00:00"]
[Board "166"]

1. e4 {[%clk 0:03:00]}  c5 {[%clk 0:02:59]} 2. Nf3 {[%clk 0:02:59]}  g6 {[%clk 0:02:58]} 3. g3 {[%clk 0:02:57]}  Bg7 {[%clk 0:02:56]} 4. Bg2 {[%clk 0:02:57]}  e6 {[%clk 0:02:56]} 5. O-O {[%clk 0:02:58]}  Ne7 {[%clk 0:02:56]} 6. d3 {[%clk 0:02:58]}  O-O {[%clk 0:02:56]} 7. Nh4 {[%clk 0:02:57]}  Nbc6 {[%clk 0:02:48]} 8. f4 {[%clk 0:02:57]}  d5 {[%clk 0:02:48]} 9. e5 {[%clk 0:02:49]}  b5 {[%clk 0:02:41]} 10. Nd2 {[%clk 0:02:18]}  Bb7 {[%clk 0:02:35]} 11. c3 {[%clk 0:02:08]}  Qb6 {[%clk 0:02:33]} 12. Kh1 {[%clk 0:02:07]}  d4 {[%clk 0:02:30]} 13. c4 {[%clk 0:02:06]}  a6 {[%clk 0:02:20]} 14. a4 {[%clk 0:02:01]}  b4 {[%clk 0:02:11]} 15. Ne4 {[%clk 0:02:00]}  Na5 {[%clk 0:02:03]} 16. Nf6+ {[%clk 0:01:43]}  Kh8 {[%clk 0:01:59]} 17. Nd7 {[%clk 0:01:40]}  Bxg2+ {[%clk 0:01:57]} 18. Nxg2 {[%clk 0:01:40]}  Qc7 {[%clk 0:01:50]} 19. Nxf8 {[%clk 0:01:38]}  Rxf8 {[%clk 0:01:49]} 20. Bd2 {[%clk 0:01:35]}  Nf5 {[%clk 0:01:47]} 21. b3 {[%clk 0:01:24]}  Rd8 {[%clk 0:01:32]} 22. Rb1 {[%clk 0:01:22]}  h5 {[%clk 0:01:22]} 23. Qf3 {[%clk 0:01:12]}  Kh7 {[%clk 0:01:13]} 24. h3 {[%clk 0:01:10]}  Rh8 {[%clk 0:01:12]} 25. g4 {[%clk 0:01:10]}  hxg4 {[%clk 0:01:11]} 26. hxg4 {[%clk 0:01:11]}  Kg8+ {[%clk 0:01:08]} 27. Kg1 {[%clk 0:01:10]}  Ne7 {[%clk 0:00:59]} 28. Kf2 {[%clk 0:00:43]}  Nec6 {[%clk 0:00:25]} 29. Qe4 {[%clk 0:00:20]}  Rh2 {[%clk 0:00:08]} 30. Kg3 {[%clk 0:00:20]}  Rh7 {[%clk 0:00:05]} 31. Be1 {[%clk 0:00:07]}  Rh8 {[%clk 0:00:03]} 32. Bf2 {[%clk 0:00:07]}  Rh7 {[%clk 0:00:03]} 33. Qe2 {[%clk 0:00:06]}  Rh8 {[%clk 0:00:02]} 34. Qc2 {[%clk 0:00:04]}  Nxe5 {[%clk 0:00:01]} 35. fxe5 {[%clk 0:00:04]}  Qxe5+ {[%clk 0:00:00]} 36. Nf4 {[%clk 0:00:03]} 1-0


[Site "https://www.chess.com"]

[Event "Titled Tuesday Blitz August 1 Late 2023"]
[White "dorpato"]
[Black "Ramadoss, Ashokkumar"]
[BlackFideId "5040990"]
[WhiteElo "2030"]
[BlackElo "2299"]
[Result "0-1"]
[Round "5"]
[TimeControl "180+1"]
[Date "2023.08.01"]
[WhiteClock "0:00:00"]
[BlackClock "0:00:51"]
[Board "167"]

1. e4 {[%clk 0:03:00]}  Nf6 {[%clk 0:03:00]} 2. e5 {[%clk 0:02:55]}  Nd5 {[%clk 0:03:00]} 3. d4 {[%clk 0:02:52]}  d6 {[%clk 0:03:01]} 4. exd6 {[%clk 0:02:49]}  cxd6 {[%clk 0:03:01]} 5. Nf3 {[%clk 0:02:49]}  g6 {[%clk 0:03:01]} 6. Bc4 {[%clk 0:02:42]}  Nb6 {[%clk 0:03:00]} 7. Bb3 {[%clk 0:02:35]}  Bg7 {[%clk 0:02:59]} 8. c3 {[%clk 0:02:22]}  O-O {[%clk 0:02:59]} 9. O-O {[%clk 0:02:12]}  Nc6 {[%clk 0:02:55]} 10. Bf4 {[%clk 0:02:01]}  Bg4 {[%clk 0:02:50]} 11. Nbd2 {[%clk 0:01:47]}  e5 {[%clk 0:02:49]} 12. dxe5 {[%clk 0:01:33]}  dxe5 {[%clk 0:02:49]} 13. Be3 {[%clk 0:01:31]}  Nd5 {[%clk 0:02:43]} 14. Bc5 {[%clk 0:01:08]}  Re8 {[%clk 0:02:38]} 15. h3 {[%clk 0:00:41]}  Bf5 {[%clk 0:02:32]} 16. Nc4 {[%clk 0:00:25]}  Nf4 {[%clk 0:02:23]} 17. Nd6 {[%clk 0:00:19]}  Bd3 {[%clk 0:01:52]} 18. Nxe8 {[%clk 0:00:14]}  Bxf1 {[%clk 0:01:35]} 19. Qxf1 {[%clk 0:00:13]}  Qxe8 {[%clk 0:01:31]} 20. Rd1 {[%clk 0:00:12]}  h6 {[%clk 0:01:19]} 21. g3 {[%clk 0:00:12]}  Ne6 {[%clk 0:01:18]} 22. Ba3 {[%clk 0:00:11]}  Rd8 {[%clk 0:01:17]} 23. Qe1 {[%clk 0:00:10]}  Rxd1 {[%clk 0:01:13]} 24. Qxd1 {[%clk 0:00:10]}  e4 {[%clk 0:01:14]} 25. Nd2 {[%clk 0:00:10]}  e3 {[%clk 0:01:08]} 26. fxe3 {[%clk 0:00:10]}  Ng5 {[%clk 0:01:09]} 27. Nc4 {[%clk 0:00:09]}  Nxh3+ {[%clk 0:01:04]} 28. Kh2 {[%clk 0:00:10]}  Ng5 {[%clk 0:01:03]} 29. Nd6 {[%clk 0:00:10]}  Qxe3 {[%clk 0:01:01]} 30. Qf1 {[%clk 0:00:07]}  Ne5 {[%clk 0:01:00]} 31. Ne8 {[%clk 0:00:04]}  Ng4+ {[%clk 0:00:59]} 32. Kg2 {[%clk 0:00:03]}  Qe4+ {[%clk 0:00:51]} 33. Kg1 {[%clk 0:00:00]}  Nf3+ {[%clk 0:00:51]} 0-1


[Site "https://www.chess.com"]

[Event "Titled Tuesday Blitz August 1 Late 2023"]
[White "Rozen, Eytan"]
[Black "Zhigalko, Sergei"]
[WhiteFideId "2816750"]
[BlackFideId "13502956"]
[WhiteElo "2782"]
[BlackElo "2910"]
[Result "0-1"]
[Round "6"]
[TimeControl "180+1"]
[Date "2023.08.01"]
[WhiteClock "0:00:16"]
[BlackClock "0:00:05"]
[Board "3"]

1. c4 {[%clk 0:03:00]}  e5 {[%clk 0:03:00]} 2. g3 {[%clk 0:02:58]}  Nf6 {[%clk 0:03:00]} 3. Bg2 {[%clk 0:02:58]}  c6 {[%clk 0:03:00]} 4. Nf3 {[%clk 0:02:52]}  d6 {[%clk 0:02:59]} 5. O-O {[%clk 0:02:49]}  Be7 {[%clk 0:03:00]} 6. Nc3 {[%clk 0:02:47]}  O-O {[%clk 0:02:58]} 7. d3 {[%clk 0:02:44]}  h6 {[%clk 0:02:58]} 8. Rb1 {[%clk 0:02:43]}  Be6 {[%clk 0:02:58]} 9. b4 {[%clk 0:02:43]}  Nbd7 {[%clk 0:02:59]} 10. Ne1 {[%clk 0:02:38]}  d5 {[%clk 0:02:58]} 11. cxd5 {[%clk 0:02:34]}  cxd5 {[%clk 0:02:59]} 12. Nc2 {[%clk 0:02:25]}  Rc8 {[%clk 0:02:58]} 13. Bb2 {[%clk 0:02:20]}  d4 {[%clk 0:02:56]} 14. Ne4 {[%clk 0:02:18]}  Bxa2 {[%clk 0:02:55]} 15. Rc1 {[%clk 0:02:12]}  Bb3 {[%clk 0:02:44]} 16. Qd2 {[%clk 0:02:12]}  Qb6 {[%clk 0:02:37]} 17. Nxf6+ {[%clk 0:02:03]}  Nxf6 {[%clk 0:02:36]} 18. Ba3 {[%clk 0:01:56]}  Rc3 {[%clk 0:02:26]} 19. Na1 {[%clk 0:01:43]}  Rxc1 {[%clk 0:02:15]} 20. Rxc1 {[%clk 0:01:44]}  Bd5 {[%clk 0:02:15]} 21. Qc2 {[%clk 0:01:38]}  Bxb4 {[%clk 0:01:54]} 22. Rb1 {[%clk 0:01:29]}  a5 {[%clk 0:01:49]} 23. Bxb4 {[%clk 0:01:22]}  axb4 {[%clk 0:01:49]} 24. Bxd5 {[%clk 0:01:18]}  Nxd5 {[%clk 0:01:50]} 25. Qc4 {[%clk 0:01:18]}  Qc6 {[%clk 0:01:09]} 26. Nc2 {[%clk 0:01:08]}  Qxc4 {[%clk 0:01:01]} 27. dxc4 {[%clk 0:01:09]}  Nc3 {[%clk 0:01:02]} 28. Rxb4 {[%clk 0:01:09]}  Nxe2+ {[%clk 0:01:03]} 29. Kf1 {[%clk 0:01:10]}  d3 {[%clk 0:00:52]} 30. Ne3 {[%clk 0:01:08]}  Ra8 {[%clk 0:00:46]} 31. Rxb7 {[%clk 0:01:07]}  Ra1+ {[%clk 0:00:43]} 32. Kg2 {[%clk 0:01:07]}  Rc1 {[%clk 0:00:19]} 33. Rd7 {[%clk 0:00:54]}  Nd4 {[%clk 0:00:19]} 34. f4 {[%clk 0:00:40]}  f6 {[%clk 0:00:06]} 35. fxe5 {[%clk 0:00:37]}  fxe5 {[%clk 0:00:07]} 36. Rd5 {[%clk 0:00:27]}  d2 {[%clk 0:00:06]} 37. Rxe5 {[%clk 0:00:16]}  Nc2 {[%clk 0:00:05]} 0-1


[Site "https://www.chess.com"]

[Event "Titled Tuesday Blitz August 1 Late 2023"]
[White "Grigoriants, Sergey"]
[Black "Sargsyan, Shant"]
[WhiteFideId "4130804"]
[BlackFideId "13306766"]
[WhiteElo "2851"]
[BlackElo "2983"]
[Result "1-0"]
[Round "6"]
[TimeControl "180+1"]
[Date "2023.08.01"]
[WhiteClock "0:00:48"]
[BlackClock "0:00:45"]
[Board "6"]

1. d4 {[%clk 0:02:59]}  g6 {[%clk 0:02:59]} 2. e4 {[%clk 0:02:58]}  Nf6 {[%clk 0:02:59]} 3. e5 {[%clk 0:02:56]}  Nh5 {[%clk 0:02:59]} 4. Nf3 {[%clk 0:02:47]}  d6 {[%clk 0:03:00]} 5. Be2 {[%clk 0:02:42]}  Bg7 {[%clk 0:02:59]} 6. O-O {[%clk 0:02:40]}  dxe5 {[%clk 0:02:59]} 7. Nxe5 {[%clk 0:02:37]}  Bxe5 {[%clk 0:02:59]} 8. dxe5 {[%clk 0:02:36]}  Qxd1 {[%clk 0:03:00]} 9. Rxd1 {[%clk 0:02:33]}  Nc6 {[%clk 0:03:01]} 10. Nc3 {[%clk 0:02:28]}  Be6 {[%clk 0:02:38]} 11. Nb5 {[%clk 0:02:11]}  Rc8 {[%clk 0:02:33]} 12. Bf3 {[%clk 0:02:11]}  Bd7 {[%clk 0:02:26]} 13. Bh6 {[%clk 0:02:01]}  a6 {[%clk 0:02:23]} 14. Bxc6 {[%clk 0:01:48]}  bxc6 {[%clk 0:02:19]} 15. Nc3 {[%clk 0:01:47]}  Bf5 {[%clk 0:02:08]} 16. h3 {[%clk 0:01:42]}  g5 {[%clk 0:01:09]} 17. g4 {[%clk 0:01:40]}  Bxc2 {[%clk 0:01:09]} 18. Rd2 {[%clk 0:01:38]}  Nf4 {[%clk 0:01:09]} 19. Rxc2 {[%clk 0:01:33]}  Rg8 {[%clk 0:01:09]} 20. h4 {[%clk 0:01:28]}  f6 {[%clk 0:01:03]} 21. exf6 {[%clk 0:01:22]}  exf6 {[%clk 0:01:04]} 22. Ne4 {[%clk 0:01:14]}  Kf7 {[%clk 0:00:59]} 23. hxg5 {[%clk 0:00:56]}  fxg5 {[%clk 0:00:57]} 24. Nxg5+ {[%clk 0:00:54]}  Rxg5 {[%clk 0:00:52]} 25. Bxg5 {[%clk 0:00:55]}  Nh3+ {[%clk 0:00:53]} 26. Kg2 {[%clk 0:00:55]}  Nxg5 {[%clk 0:00:54]} 27. Rxc6 {[%clk 0:00:55]}  Ne6 {[%clk 0:00:52]} 28. Re1 {[%clk 0:00:52]}  Nf4+ {[%clk 0:00:52]} 29. Kg3 {[%clk 0:00:52]}  Nd3 {[%clk 0:00:51]} 30. Rh1 {[%clk 0:00:52]}  Kg7 {[%clk 0:00:49]} 31. Rxa6 {[%clk 0:00:49]}  Nxb2 {[%clk 0:00:48]} 32. Rah6 {[%clk 0:00:49]}  Rh8 {[%clk 0:00:48]} 33. Rc6 {[%clk 0:00:49]}  Rc8 {[%clk 0:00:47]} 34. Rhc1 {[%clk 0:00:48]}  Ra8 {[%clk 0:00:45]} 35. Rxc7+ {[%clk 0:00:48]} 1-0


[Site "https://www.chess.com"]

[Event "Titled Tuesday Blitz August 1 Late 2023"]
[White "Harshavardhan G B"]
[Black "Aronian, Levon"]
[WhiteFideId "25059009"]
[BlackFideId "13300474"]
[WhiteElo "2874"]
[BlackElo "3038"]
[Result "1-0"]
[Round "6"]
[TimeControl "180+1"]
[Date "2023.08.01"]
[WhiteClock "0:00:25"]
[BlackClock "0:00:40"]
[Board "7"]

1. d4 {[%clk 0:03:00]}  Nf6 {[%clk 0:02:57]} 2. c4 {[%clk 0:02:59]}  g6 {[%clk 0:02:58]} 3. Nc3 {[%clk 0:02:58]}  Bg7 {[%clk 0:02:58]} 4. e4 {[%clk 0:02:58]}  O-O {[%clk 0:02:58]} 5. Nf3 {[%clk 0:02:59]}  d6 {[%clk 0:02:59]} 6. Be2 {[%clk 0:02:58]}  c5 {[%clk 0:02:59]} 7. d5 {[%clk 0:02:58]}  e6 {[%clk 0:02:59]} 8. h3 {[%clk 0:02:57]}  exd5 {[%clk 0:02:54]} 9. exd5 {[%clk 0:02:58]}  a6 {[%clk 0:02:45]} 10. a4 {[%clk 0:02:57]}  b6 {[%clk 0:02:45]} 11. O-O {[%clk 0:02:56]}  Nbd7 {[%clk 0:02:43]} 12. Re1 {[%clk 0:02:55]}  Qc7 {[%clk 0:02:32]} 13. Bf4 {[%clk 0:02:53]}  Ne8 {[%clk 0:02:23]} 14. Qd2 {[%clk 0:02:51]}  Ne5 {[%clk 0:02:23]} 15. Bh6 {[%clk 0:02:45]}  f6 {[%clk 0:02:15]} 16. Bxg7 {[%clk 0:02:41]}  Nxg7 {[%clk 0:02:15]} 17. Nh2 {[%clk 0:02:39]}  Nf5 {[%clk 0:02:11]} 18. f4 {[%clk 0:02:36]}  Nd7 {[%clk 0:02:11]} 19. Nf3 {[%clk 0:02:34]}  Ng7 {[%clk 0:02:02]} 20. Bd3 {[%clk 0:02:33]}  f5 {[%clk 0:01:58]} 21. Re7 {[%clk 0:02:25]}  Qd8 {[%clk 0:01:55]} 22. Rae1 {[%clk 0:02:24]}  Nf6 {[%clk 0:01:55]} 23. R7e2 {[%clk 0:02:19]}  h6 {[%clk 0:01:49]} 24. b3 {[%clk 0:02:05]}  Ra7 {[%clk 0:01:46]} 25. Nh4 {[%clk 0:02:03]}  Kh7 {[%clk 0:01:45]} 26. g4 {[%clk 0:02:02]}  Ne4 {[%clk 0:01:33]} 27. Nxe4 {[%clk 0:01:57]}  Qxh4 {[%clk 0:01:29]} 28. Nxd6 {[%clk 0:01:57]}  Qxh3 {[%clk 0:01:29]} 29. Nxc8 {[%clk 0:01:41]}  Rxc8 {[%clk 0:01:27]} 30. gxf5 {[%clk 0:01:41]}  gxf5 {[%clk 0:01:21]} 31. Rh2 {[%clk 0:01:40]}  Qg4+ {[%clk 0:01:17]} 32. Rg2 {[%clk 0:01:40]}  Qh4 {[%clk 0:01:16]} 33. Qf2 {[%clk 0:01:39]}  Qf6 {[%clk 0:01:14]} 34. Qb2 {[%clk 0:01:34]}  Qf7 {[%clk 0:01:07]} 35. Re3 {[%clk 0:01:12]}  Re8 {[%clk 0:01:06]} 36. Rxe8 {[%clk 0:01:09]}  Qxe8 {[%clk 0:01:05]} 37. Qe5 {[%clk 0:01:06]}  Re7 {[%clk 0:01:05]} 38. Bxf5+ {[%clk 0:00:51]}  Kh8 {[%clk 0:01:03]} 39. Be6 {[%clk 0:00:51]}  Qh5 {[%clk 0:00:59]} 40. Qxh5 {[%clk 0:00:44]}  Nxh5 {[%clk 0:00:59]} 41. f5 {[%clk 0:00:44]}  Nf6 {[%clk 0:00:45]} 42. d6 {[%clk 0:00:39]}  Ra7 {[%clk 0:00:44]} 43. Rg6 {[%clk 0:00:37]}  Nd7 {[%clk 0:00:44]} 44. f6 {[%clk 0:00:33]}  Ne5 {[%clk 0:00:43]} 45. Rxh6+ {[%clk 0:00:29]}  Rh7 {[%clk 0:00:43]} 46. Rxh7+ {[%clk 0:00:29]}  Kxh7 {[%clk 0:00:43]} 47. d7 {[%clk 0:00:30]}  Nc6 {[%clk 0:00:43]} 48. Bd5 {[%clk 0:00:27]}  Nd8 {[%clk 0:00:43]} 49. Kf2 {[%clk 0:00:25]}  Kg6 {[%clk 0:00:40]} 50. f7 {[%clk 0:00:25]} 1-0


[Site "https://www.chess.com"]

[Event "Titled Tuesday Blitz August 1 Late 2023"]
[White "He, Anthony"]
[Black "Volkov, Maksim"]
[WhiteFideId "2088215"]
[BlackFideId "54123070"]
[WhiteElo "2940"]
[BlackElo "2705"]
[Result "1-0"]
[Round "6"]
[TimeControl "180+1"]
[Date "2023.08.01"]
[WhiteClock "0:00:40"]
[BlackClock "0:00:13"]
[Board "13"]

1. d4 {[%clk 0:02:57]}  d5 {[%clk 0:03:00]} 2. Nc3 {[%clk 0:02:56]}  Nf6 {[%clk 0:02:59]} 3. Bf4 {[%clk 0:02:56]}  a6 {[%clk 0:03:00]} 4. e3 {[%clk 0:02:56]}  e6 {[%clk 0:03:00]} 5. g4 {[%clk 0:02:56]}  c5 {[%clk 0:02:59]} 6. g5 {[%clk 0:02:54]}  Nfd7 {[%clk 0:02:57]} 7. Nf3 {[%clk 0:02:54]}  Nc6 {[%clk 0:02:58]} 8. h4 {[%clk 0:02:51]}  b5 {[%clk 0:02:46]} 9. h5 {[%clk 0:02:44]}  b4 {[%clk 0:02:41]} 10. Ne2 {[%clk 0:02:43]}  h6 {[%clk 0:02:32]} 11. g6 {[%clk 0:02:34]}  f5 {[%clk 0:02:26]} 12. Bh3 {[%clk 0:02:29]}  Nf6 {[%clk 0:02:18]} 13. Ng3 {[%clk 0:02:26]}  Bd6 {[%clk 0:02:18]} 14. Ne5 {[%clk 0:02:22]}  Bxe5 {[%clk 0:02:14]} 15. dxe5 {[%clk 0:02:23]}  Nd7 {[%clk 0:02:02]} 16. e4 {[%clk 0:02:13]}  dxe4 {[%clk 0:01:45]} 17. Qd6 {[%clk 0:02:02]}  Nd4 {[%clk 0:01:42]} 18. c3 {[%clk 0:02:01]}  bxc3 {[%clk 0:01:40]} 19. bxc3 {[%clk 0:02:02]}  Nf3+ {[%clk 0:01:33]} 20. Ke2 {[%clk 0:01:59]}  Qe7 {[%clk 0:01:33]} 21. Qc6 {[%clk 0:01:55]}  Rb8 {[%clk 0:01:31]} 22. Bxf5 {[%clk 0:01:32]}  Rb2+ {[%clk 0:01:28]} 23. Ke3 {[%clk 0:01:22]}  Bb7 {[%clk 0:01:16]} 24. Qxe6 {[%clk 0:01:21]}  Nfxe5 {[%clk 0:01:07]} 25. Rab1 {[%clk 0:01:11]}  Rxb1 {[%clk 0:00:51]} 26. Rxb1 {[%clk 0:01:12]}  Qxe6 {[%clk 0:00:47]} 27. Bxe6 {[%clk 0:01:13]}  Bc6 {[%clk 0:00:47]} 28. Bxe5 {[%clk 0:01:07]}  Nxe5 {[%clk 0:00:47]} 29. Rb8+ {[%clk 0:00:53]}  Ke7 {[%clk 0:00:47]} 30. Rxh8 {[%clk 0:00:54]}  Kxe6 {[%clk 0:00:48]} 31. Nxe4 {[%clk 0:00:54]}  Nc4+ {[%clk 0:00:40]} 32. Kf4 {[%clk 0:00:54]}  Bxe4 {[%clk 0:00:27]} 33. Kxe4 {[%clk 0:00:55]}  Nd6+ {[%clk 0:00:27]} 34. Kf4 {[%clk 0:00:53]}  Nb5 {[%clk 0:00:25]} 35. Rh7 {[%clk 0:00:45]}  Kf6 {[%clk 0:00:24]} 36. c4 {[%clk 0:00:45]}  Nd6 {[%clk 0:00:23]} 37. Rh8 {[%clk 0:00:44]}  Nxc4 {[%clk 0:00:24]} 38. Rc8 {[%clk 0:00:44]}  Ne5 {[%clk 0:00:23]} 39. Ke4 {[%clk 0:00:39]}  c4 {[%clk 0:00:19]} 40. f4 {[%clk 0:00:39]}  Nd3 {[%clk 0:00:15]} 41. Rc6+ {[%clk 0:00:39]}  Ke7 {[%clk 0:00:15]} 42. Rc7+ {[%clk 0:00:39]}  Kf6 {[%clk 0:00:14]} 43. Rxc4 {[%clk 0:00:40]}  Nf2+ {[%clk 0:00:14]} 44. Kf3 {[%clk 0:00:40]}  Nd3 {[%clk 0:00:14]} 45. Rc6+ {[%clk 0:00:40]}  Kf5 {[%clk 0:00:15]} 46. Rxa6 {[%clk 0:00:41]}  Nb4 {[%clk 0:00:15]} 47. Ra5+ {[%clk 0:00:41]}  Kf6 {[%clk 0:00:15]} 48. a3 {[%clk 0:00:39]}  Nc2 {[%clk 0:00:15]} 49. a4 {[%clk 0:00:40]}  Nd4+ {[%clk 0:00:13]} 50. Ke4 {[%clk 0:00:40]} 1-0


[Site "https://www.chess.com"]